fUSD/lending_fUSD_20240817
["ID","MTS","AMOUNT","RATE_DAILY","PERIOD"]
[335139297,1723887032958,-150.0,0.00010866,2]
[335139299,1723887032967,-151.0,0.00010879,2]
[335139301,1723887032977,-151.1174,0.00010879,2]
[335139303,1723887032986,-201.435534,0.00010891,2]
[335139304,1723887032995,-201.435534,0.00010891,2]
[335139307,1723887033005,-201.435534,0.00010891,2]
[335139308,1723887033015,-1347.8626058,0.00010891,2]
[335139310,1723887033024,-1072.1388054,0.00010891,2]
[335139312,1723887033034,-796.4150051,0.00010891,2]
[335139314,1723887033044,-201.435534,0.00010893,2]
[335139316,1723887033054,-520.6912048,0.00010893,2]
[335139318,1723887033064,-500.0,0.00010897,2]
[335139320,1723887033074,-2720.62925619,0.00010897,2]
[335139322,1723887033086,-2752.2210525,0.00010897,2]
[335139324,1723887033098,-462.50969131,0.00010897,2]
[335139325,1723887033108,-603.16,0.00010897,2]
[335139326,1723887033118,-31.06807365,0.00010897,2]
[335139327,1723887033131,-1238.04,0.00010897,2]
[335139328,1723887033143,-478.59396333,0.00010897,2]
[335139329,1723887033154,-8678.22559473,0.00010897,2]
[335139330,1723887033166,-280.83854349,0.00010897,2]
[335139335,1723887037742,-500.0,0.00010647,2]
[335139336,1723887037894,-3633.17935124,0.00010647,2]
[335139337,1723887037906,-56218.35094876,0.00010647,2]
[335139338,1723887037915,-455.91,0.00010747,2]
[335139339,1723887037924,-343.73104868,0.00010799,2]
[335139340,1723887037934,-27567.79981839,0.00010897,2]
[335139341,1723887037971,-3877.5583544,0.00010897,2]
[335139342,1723887037981,-500.0,0.00010898,2]
[335139343,1723887037990,-9894.60117768,0.00010898,2]
[335139344,1723887038000,-3475.92,0.00010898,2]
[335139345,1723887038010,-3475.92,0.00010898,2]
[335139346,1723887038020,-500.0,0.00010898,2]
[335139347,1723887038030,-515.20106431,0.00010898,2]
[335139348,1723887038039,-547.47470408,0.00010898,2]
[335139349,1723887038048,-3161.81,0.00010898,2]
[335139350,1723887038057,-3161.81,0.00010898,2]
[335139351,1723887038068,-594.83987397,0.00010898,2]
[335139352,1723887038079,-667.57069182,0.00010898,2]
[335139353,1723887038090,-1899.39943421,0.00010898,2]
[335139354,1723887038100,-3161.81,0.00010898,2]
[335139355,1723887038110,-163.71026579,0.00010898,2]
[335139369,1723887040557,-1146.40742326,0.00010747,2]
[335139370,1723887040573,-891.575212,0.00010747,2]
[335139371,1723887040779,-383.0020099,0.00010747,2]
[335139383,1723887042977,-9040.40493919,0.00010747,2]
[335139386,1723887044698,-2899.07401266,0.00010747,2]
[335139388,1723887045952,-317.13482024,0.00010747,2]
[335139389,1723887045963,-2043.70030132,0.00010747,2]
[335139390,1723887045975,-207.71428143,0.00010747,2]
[335139391,1723887045984,-2957.73144076,0.00010799,2]
[335139392,1723887045993,-343.73104866,0.00010829,2]
[335139393,1723887046003,-343.73104866,0.00010858,2]
[335139394,1723887046012,-336.28973421,0.00010898,2]
[335139395,1723887046022,-500.0,0.00010898,2]
[335139396,1723887046031,-500.0,0.00010898,2]
[335139397,1723887046041,-420.32008422,0.00010898,2]
[335139398,1723887046053,-79.67991578,0.00010898,2]
[335139399,1723887046062,-500.0,0.00010898,2]
[335139400,1723887046072,-500.0,0.00010898,2]
[335139401,1723887046081,-170.54815316,0.00010898,2]
[335139404,1723887053152,2342.90099088,9.962e-05,2]
[335139405,1723887053611,155.0,9.962e-05,2]
[335139406,1723887054667,171.41953258,9.962e-05,2]
[335139407,1723887055037,415.01059966,9.962e-05,2]
[335139408,1723887056200,179.4623719,9.962e-05,2]
[335139409,1723887062181,316.83560636,9.962e-05,2]
[335139410,1723887069756,155.0,9.962e-05,2]
[335139411,1723887070643,527.00706835,9.962e-05,2]
[335139412,1723887071729,439.2648604,9.962e-05,2]
[335139413,1723887076035,260.85713222,9.962e-05,2]
[335139414,1723887076068,155.0,9.962e-05,2]
[335139415,1723887076820,292.71591566,9.962e-05,2]
[335139416,1723887189219,575.07,9.954e-05,2]
[335139417,1723887532978,194.75,8.219e-05,2]
[335139418,1723887670295,539.94,9.938e-05,2]
[335139419,1723887685141,2342.90099088,9.962e-05,2]
[335139420,1723887734135,2342.90099088,9.962e-05,2]
[335139429,1723888045269,185.01,8.219e-05,2]
[335139513,1723888212038,526.54533819,9.943e-05,2]
[335139518,1723888231978,-550.0,0.0001,2]
[335139519,1723888231988,-174.67,0.00010005,2]
[335139520,1723888231998,-292.71591566,0.00010471,2]
[335139521,1723888232007,-185.01,0.00010471,2]
[335139522,1723888232017,-155.0,0.00010699,2]
[335139523,1723888232026,-531.39122984,0.00010713,2]
[335139524,1723888232035,-300.0,0.00010748,2]
[335139525,1723888232045,-556.0,0.00010749,2]
[335139526,1723888232055,-557.733,0.00010749,2]
[335139527,1723888232071,-408.967,0.00010749,2]
[335139528,1723888232081,-273.633,0.00010749,2]
[335139529,1723888232090,-764.0,0.00010749,2]
[335139530,1723888232099,-163.021,0.00010749,2]
[335139531,1723888232109,-297.134,0.00010749,2]
[335139532,1723888232119,-477.91640097,0.00010799,2]
[335139533,1723888232131,-1767.74,0.00010799,2]
[335139534,1723888232143,-361.36554768,0.00010799,2]
[335139535,1723888232154,-1208.08635135,0.00010799,2]
[335139536,1723888232164,-510.811,0.00010799,2]
[335139537,1723888232173,-189.94,0.00010799,2]
[335139538,1723888232182,-1185.36264865,0.00010799,2]
[335139539,1723888232194,-939.2,0.00010799,2]
[335139540,1723888232205,-10738.91143297,0.00010799,2]
[335139541,1723888232216,-3754.52126582,0.00010799,2]
[335139542,1723888232228,-1693.79465256,0.00010799,2]
[335139543,1723888232238,-2000.0,0.000108,2]
[335139544,1723888232248,-401.62337545,0.000108,2]
[335139545,1723888232257,-261.2282296,0.000108,2]
[335139546,1723888232267,-164.14081487,0.000108,2]
[335139547,1723888232276,-112.22771137,0.000108,2]
[335139548,1723888232288,-123.43429463,0.000108,2]
[335139549,1723888232298,-261.22822956,0.00010817,2]
[335139550,1723888232308,-261.22822956,0.00010833,2]
[335139551,1723888232317,-164.14081487,0.00010833,2]
[335139552,1723888232327,-261.22822956,0.0001085,2]
[335139553,1723888232336,-150.0,0.00010857,2]
[335139554,1723888232345,-155.0,0.00010862,2]
[335139555,1723888232355,-155.31499189,0.00010862,2]
[335139556,1723888232365,-261.22822956,0.00010867,2]
[335139557,1723888232374,-163.57291391,0.00010867,2]
[335139559,1723888232389,-0.56790096,0.00010867,2]
[335139561,1723888232398,-261.22822956,0.00010883,2]
[335139563,1723888232407,-714.5,0.0001089,2]
[335139565,1723888232416,-24.07558948,0.0001089,2]
[335139567,1723888232431,-304.69333821,0.0001089,2]
[335139568,1723888232442,-314.95678844,0.00010891,2]
[335139570,1723888232456,-185.03321156,0.00010891,2]
[335139572,1723888232465,-201.43553421,0.00010891,2]
[335139574,1723888232474,-244.96740487,0.00010891,2]
[335139576,1723888232485,-150.56250363,0.00010891,2]
[335139578,1723888232496,-2927.42228767,0.00010891,2]
[335139580,1723888232505,-2896.6,0.00010896,2]
[335139582,1723888232515,-821.86062993,0.00010897,2]
[335139584,1723888232525,-200.0,0.00010898,2]
[335139585,1723888232535,-141.66867948,0.00010898,2]
[335139587,1723888232547,-2754.93132052,0.00010898,2]
[335139589,1723888232556,-2685.02867948,0.00010898,2]
[335139591,1723888232568,-211.57132052,0.00010898,2]
[335139593,1723888232578,-1107.45553598,0.00010898,2]
[335139595,1723888232589,-1789.14446402,0.00010898,2]
[335139597,1723888232599,-3267.22,0.00010898,2]
[335139598,1723888232608,-3267.22,0.00010898,2]
[335139599,1723888232618,-3267.22,0.00010898,2]
[335139600,1723888232627,-179.75981839,0.00010898,2]
[335139602,1723888237988,-320.24018161,0.00010898,2]
[335139603,1723888237998,-500.0,0.00010898,2]
[335139604,1723888238008,-500.0,0.00010898,2]
[335139605,1723888238017,-790.89849785,0.00010898,2]
[335139606,1723888238029,-360.57819215,0.00010898,2]
[335139607,1723888238038,-500.0,0.00010898,2]
[335139608,1723888238047,-500.0,0.00010898,2]
[335139609,1723888238057,-500.0,0.00010898,2]
[335139610,1723888238069,-500.0,0.00010898,2]
[335139611,1723888238079,-500.0,0.00010898,2]
[335139612,1723888238088,-84.45610151,0.00010898,2]
[335139613,1723888238107,-415.54389849,0.00010898,2]
[335139614,1723888238117,-500.0,0.00010898,2]
[335139615,1723888238126,-578.03,0.00010898,2]
[335139616,1723888238136,-578.03,0.00010898,2]
[335139617,1723888238145,-578.03,0.00010898,2]
[335139618,1723888238155,-5688.05,0.00010898,2]
[335139619,1723888238164,-5688.05,0.00010898,2]
[335139620,1723888238173,-5688.05,0.00010898,2]
[335139621,1723888238183,-863.9,0.00010898,2]
[335139622,1723888238192,-863.9,0.00010898,2]
[335139623,1723888238202,-863.9,0.00010898,2]
[335139624,1723888238212,-859.86,0.00010898,2]
[335139625,1723888238221,-621.52204361,0.00010898,2]
[335139626,1723888238233,-238.33795639,0.00010898,2]
[335139627,1723888238242,-859.86,0.00010898,2]
[335139628,1723888238251,-2896.6,0.00010899,2]
[335139629,1723888238260,-3267.22,0.00010899,2]
[335139630,1723888238270,-500.0,0.00010899,2]
[335139631,1723888238279,-500.0,0.00010899,2]
[335139633,1723888238288,-500.0,0.00010899,2]
[335139635,1723888238297,-578.03,0.00010899,2]
[335139637,1723888238308,-5688.05,0.00010899,2]
[335139639,1723888238318,-863.9,0.00010899,2]
[335139641,1723888238328,-859.86,0.00010899,2]
[335139643,1723888238337,-251.63881623,0.000109,2]
[335139645,1723888238348,-9.58941333,0.000109,2]
[335139646,1723888238357,-164.14081487,0.000109,2]
[335139648,1723888238366,-357.17,0.000109,2]
[335139650,1723888238375,-628.27878678,0.000109,2]
[335139652,1723888238385,-5876.29025959,0.000109,2]
[335139654,1723888238396,-4000.0,0.000109,2]
[335139657,1723888238410,-397.93280975,0.000109,2]
[335139659,1723888238421,-807.21847157,0.000109,2]
[335139661,1723888238430,-828.37317843,0.000109,2]
[335139663,1723888238440,-202.0,0.0001093,2]
[335139665,1723888238449,-500.0,0.00010958,2]
[335139666,1723888238458,-500.0,0.00010958,2]
[335139668,1723888238467,-500.0,0.00010958,2]
[335139670,1723888238477,-309.48368919,0.00010958,2]
[335139672,1723888238486,-500.0,0.00010958,2]
[335139674,1723888238496,-500.0,0.00010958,2]
[335139676,1723888238508,-500.0,0.00010958,2]
[335139678,1723888238517,-500.0,0.00010958,2]
[335139680,1723888238527,-644.58218248,0.00010958,2]
[335139682,1723888238536,-500.0,0.00010958,2]
[335139684,1723888238546,-500.0,0.00010958,2]
[335139685,1723888238555,-500.0,0.00010958,2]
[335139687,1723888238565,-500.0,0.00010958,2]
[335139689,1723888238575,-500.0,0.00010958,2]
[335139691,1723888238584,-465.90784533,0.00010958,2]
[335139692,1723888238596,-34.09215467,0.00010958,2]
[335139693,1723888238606,-500.0,0.00010958,2]
[335139694,1723888238615,-500.0,0.00010958,2]
[335139695,1723888238624,-500.0,0.00010958,2]
[335139696,1723888238634,-261.93569369,0.00010958,2]
[335139697,1723888238644,-500.0,0.00010958,2]
[335139698,1723888238653,-500.0,0.00010958,2]
[335139699,1723888238662,-500.0,0.00010958,2]
[335139700,1723888238671,-500.0,0.00010958,2]
[335139701,1723888238681,-500.0,0.00010958,2]
[335139702,1723888238691,-500.0,0.00010958,2]
[335139703,1723888238701,-500.0,0.00010958,2]
[335139704,1723888238710,-500.0,0.00010958,2]
[335139705,1723888238720,-500.0,0.00010958,2]
[335139706,1723888238731,-500.0,0.00010958,2]
[335139707,1723888238740,-500.0,0.00010958,2]
[335139708,1723888238749,-500.0,0.00010958,2]
[335139709,1723888238760,-500.0,0.00010958,2]
[335139710,1723888238772,-500.0,0.00010958,2]
[335139711,1723888238782,-500.0,0.00010958,2]
[335139712,1723888238791,-500.0,0.00010958,2]
[335139713,1723888238801,-280.11906625,0.00010958,2]
[335139714,1723888238811,-500.0,0.00010958,2]
[335139715,1723888238821,-500.0,0.00010958,2]
[335139716,1723888238830,-500.0,0.00010958,2]
[335139717,1723888238840,-500.0,0.00010958,2]
[335139718,1723888238850,-500.0,0.00010958,2]
[335139719,1723888238859,-13.7284623,0.00010958,2]
[335139720,1723888238871,-322.08277486,0.00010958,2]
[335139721,1723888238882,-164.18876284,0.00010958,2]
[335139722,1723888238892,-500.0,0.00010958,2]
[335139723,1723888238902,-131.07944266,0.00010958,2]
[335139724,1723888238913,-135.62155709,0.00010958,2]
[335139725,1723888238923,-500.0,0.00010958,2]
[335139726,1723888238932,-371.76141729,0.00010958,2]
[335139727,1723888238943,-128.23858271,0.00010958,2]
[335139728,1723888238953,-500.0,0.00010958,2]
[335139729,1723888238963,-47.30955541,0.00010958,2]
[335139730,1723888238974,-452.69044459,0.00010958,2]
[335139731,1723888238983,-500.0,0.00010958,2]
[335139732,1723888238993,-500.0,0.00010958,2]
[335139733,1723888239003,-303.05935515,0.00010958,2]
[335139734,1723888239017,-196.94064485,0.00010958,2]
[335139735,1723888239026,-146.91643514,0.00010958,2]
[335139736,1723888239038,-353.08356486,0.00010958,2]
[335139737,1723888239047,-500.0,0.00010958,2]
[335139738,1723888239057,-500.0,0.00010958,2]
[335139739,1723888239068,-500.0,0.00010958,2]
[335139740,1723888239078,-500.0,0.00010958,2]
[335139741,1723888239087,-500.0,0.00010958,2]
[335139742,1723888239096,-500.0,0.00010958,2]
[335139743,1723888239105,-500.0,0.00010958,2]
[335139744,1723888239114,-500.0,0.00010958,2]
[335139745,1723888239123,-500.0,0.00010958,2]
[335139746,1723888239132,-500.0,0.00010958,2]
[335139747,1723888239142,-500.0,0.00010958,2]
[335139748,1723888239151,-500.0,0.00010958,2]
[335139749,1723888239160,-500.0,0.00010958,2]
[335139750,1723888239169,-500.0,0.00010958,2]
[335139751,1723888239179,-193.85801616,0.00010958,2]
[335139752,1723888239188,-500.0,0.00010958,2]
[335139753,1723888239197,-500.0,0.00010958,2]
[335139754,1723888239206,-500.0,0.00010958,2]
[335139755,1723888239215,-500.0,0.00010958,2]
[335139756,1723888239224,-500.0,0.00010958,2]
[335139757,1723888239232,-500.0,0.00010958,2]
[335139758,1723888239241,-500.0,0.00010958,2]
[335139759,1723888239250,-500.0,0.00010958,2]
[335139760,1723888239259,-500.0,0.00010958,2]
[335139761,1723888239268,-500.0,0.00010958,2]
[335139762,1723888239277,-500.0,0.00010958,2]
[335139763,1723888239286,-500.0,0.00010958,2]
[335139764,1723888239295,-500.0,0.00010958,2]
[335139765,1723888239303,-306.52260567,0.00010958,2]
[335139766,1723888239314,-500.0,0.00010958,2]
[335139767,1723888239323,-500.0,0.00010958,2]
[335139768,1723888239332,-500.0,0.00010958,2]
[335139769,1723888239342,-500.0,0.00010958,2]
[335139770,1723888239352,-500.0,0.00010958,2]
[335139771,1723888239361,-500.0,0.00010958,2]
[335139772,1723888239370,-500.0,0.00010958,2]
[335139773,1723888239379,-500.0,0.00010958,2]
[335139774,1723888239388,-500.0,0.00010958,2]
[335139775,1723888239398,-500.0,0.00010958,2]
[335139776,1723888239407,-500.0,0.00010958,2]
[335139777,1723888239417,-357.4212432,0.00010958,2]
[335139778,1723888239426,-500.0,0.00010958,2]
[335139779,1723888239435,-500.0,0.00010958,2]
[335139780,1723888239445,-500.0,0.00010958,2]
[335139781,1723888239454,-500.0,0.00010958,2]
[335139782,1723888239463,-500.0,0.00010958,2]
[335139783,1723888239472,-500.0,0.00010958,2]
[335139784,1723888239482,-500.0,0.00010958,2]
[335139785,1723888239491,-500.0,0.00010958,2]
[335139786,1723888239500,-500.0,0.00010958,2]
[335139787,1723888239509,-500.0,0.00010958,2]
[335139788,1723888239519,-500.0,0.00010958,2]
[335139789,1723888239528,-500.0,0.00010958,2]
[335139790,1723888239537,-500.0,0.00010958,2]
[335139791,1723888239546,-72.66420892,0.00010958,2]
[335139793,1723888240108,-427.33579108,0.00010958,2]
[335139794,1723888240118,-500.0,0.00010958,2]
[335139795,1723888240129,-500.0,0.00010958,2]
[335139796,1723888240139,-500.0,0.00010958,2]
[335139797,1723888240149,-500.0,0.00010958,2]
[335139798,1723888240159,-500.0,0.00010958,2]
[335139799,1723888240169,-500.0,0.00010958,2]
[335139800,1723888240179,-500.0,0.00010958,2]
[335139801,1723888240189,-500.0,0.00010958,2]
[335139802,1723888240199,-498.05871388,0.00010958,2]
[335139803,1723888240215,-1.94128612,0.00010958,2]
[335139804,1723888240225,-300.0,0.00010958,2]
[335139805,1723888240234,-1183.31630917,0.00010958,2]
[335139806,1723888240245,-2083.90369083,0.00010958,2]
[335139807,1723888240255,-382.28562988,0.00010958,2]
[335139808,1723888240264,-221.55993051,0.00010958,2]
[335139809,1723888240276,-322.55253522,0.00010958,2]
[335139810,1723888240285,-478.28079298,0.00010958,2]
[335139811,1723888240296,-891.147522,0.00010958,2]
[335139814,1723888242809,-2144.95,0.000109,2]
[335139815,1723888242819,-3162.95,0.00010958,2]
[335139816,1723888242830,-711.24,0.00010958,2]
[335139817,1723888242842,-444.43168502,0.00010958,2]
[335139818,1723888242852,-859.86,0.00010958,2]
[335139819,1723888242861,-1000.0,0.00010959,2]
[335139820,1723888242870,-394.15407598,0.00010959,2]
[335139821,1723888242979,-605.84592402,0.00010959,2]
[335139822,1723888242990,-1000.0,0.00010959,2]
[335139823,1723888243000,-1000.0,0.00010959,2]
[335139824,1723888243009,-1000.0,0.00010959,2]
[335139825,1723888243020,-1000.0,0.00010959,2]
[335139826,1723888243031,-1000.0,0.00010959,2]
[335139827,1723888243040,-1000.0,0.00010959,2]
[335139828,1723888243049,-1000.0,0.00010959,2]
[335139829,1723888243059,-1000.0,0.00010959,2]
[335139830,1723888243068,-1000.0,0.00010959,2]
[335139831,1723888243077,-1000.0,0.00010959,2]
[335139832,1723888243086,-1000.0,0.00010959,2]
[335139834,1723888243096,-1000.0,0.00010959,2]
[335139836,1723888243105,-1000.0,0.00010959,2]
[335139837,1723888243114,-1000.0,0.00010959,2]
[335139838,1723888243123,-1000.0,0.00010959,2]
[335139839,1723888243132,-1000.0,0.00010959,2]
[335139840,1723888243142,-1000.0,0.00010959,2]
[335139841,1723888243152,-1000.0,0.00010959,2]
[335139842,1723888243161,-1000.0,0.00010959,2]
[335139843,1723888243172,-1000.0,0.00010959,2]
[335139844,1723888243182,-1000.0,0.00010959,2]
[335139845,1723888243192,-1000.0,0.00010959,2]
[335139846,1723888243204,-1000.0,0.00010959,2]
[335139847,1723888243213,-1000.0,0.00010959,2]
[335139848,1723888243222,-1000.0,0.00010959,2]
[335139849,1723888243231,-1000.0,0.00010959,2]
[335139850,1723888243240,-1000.0,0.00010959,2]
[335139851,1723888243250,-1000.0,0.00010959,2]
[335139852,1723888243258,-1000.0,0.00010959,2]
[335139853,1723888243267,-1000.0,0.00010959,2]
[335139854,1723888243276,-1000.0,0.00010959,2]
[335139855,1723888243285,-1000.0,0.00010959,2]
[335139856,1723888243296,-1000.0,0.00010959,2]
[335139858,1723888243306,-1000.0,0.00010959,2]
[335139859,1723888243316,-1000.0,0.00010959,2]
[335139860,1723888243327,-1000.0,0.00010959,2]
[335139861,1723888243338,-1000.0,0.00010959,2]
[335139862,1723888243348,-1000.0,0.00010959,2]
[335139863,1723888243357,-426.88474948,0.00010959,2]
[335139864,1723888244217,-573.11525052,0.00010959,2]
[335139867,1723888244227,-1000.0,0.00010959,2]
[335139868,1723888244236,-1000.0,0.00010959,2]
[335139869,1723888244246,-1000.0,0.00010959,2]
[335139871,1723888244255,-1000.0,0.00010959,2]
[335139872,1723888244264,-1000.0,0.00010959,2]
[335139873,1723888244273,-1000.0,0.00010959,2]
[335139874,1723888244283,-1000.0,0.00010959,2]
[335139875,1723888244292,-1000.0,0.00010959,2]
[335139876,1723888244301,-106.47981029,0.00010959,2]
[335139877,1723888245096,-893.52018971,0.00010959,2]
[335139878,1723888245105,-117.69747695,0.00010959,2]
[335139879,1723888245116,-882.30252305,0.00010959,2]
[335139880,1723888245126,-723.04928071,0.00010959,2]
[335139881,1723888246183,-276.95071929,0.00010959,2]
[335139882,1723888246193,-1000.0,0.00010959,2]
[335139883,1723888246203,-17.68882923,0.00010959,2]
[335139884,1723888246214,-982.31117077,0.00010959,2]
[335139885,1723888246225,-1000.0,0.00010959,2]
[335139886,1723888246234,-326.47406779,0.00010959,2]
[335139887,1723888246303,-673.52593221,0.00010959,2]
[335139889,1723888246312,-1000.0,0.00010959,2]
[335139890,1723888246322,-986.9378278,0.00010959,2]
[335139892,1723888255516,-150.558,0.00010756,2]
[335139893,1723888255539,-150.0,0.00010756,2]
[335139894,1723888255563,-155.0,0.00010861,2]
[335139895,1723888255588,-19544.442,0.00010899,2]
[335139896,1723888256333,-20000.0,0.00010899,2]
[335139897,1723888256734,-20000.0,0.00010899,2]
[335139898,1723888257099,-20000.0,0.00010899,2]
[335139899,1723888258002,-7893.53676443,0.00010899,2]
[335139900,1723888258026,-12106.46323557,0.00010899,2]
[335139902,1723888258555,-20000.0,0.00010899,2]
[335139903,1723888258602,415.01059966,9.962e-05,2]
[335139904,1723888259073,-20000.0,0.00010899,2]
[335139905,1723888259627,-20000.0,0.00010899,2]
[335139907,1723888271666,-300.0,0.00010898,2]
[335139908,1723888271690,-15331.51552882,0.00010899,2]
[335139909,1723888271715,-3768.48447118,0.00010899,2]
[335139911,1723888283260,-290.3767219,0.000108,2]
[335139912,1723888283284,-19709.6232781,0.00010899,2]
[335139913,1723888283816,-20000.0,0.00010899,2]
[335139921,1723888308505,-926.25003442,0.000108,2]
[335139922,1723888308530,-2586.54,0.00010898,2]
[335139923,1723888308555,-2586.54,0.00010898,2]
[335139924,1723888308578,-2586.54,0.00010898,2]
[335139925,1723888308602,-8171.25596558,0.00010899,2]
[335139930,1723888336455,-3284.640274,0.00010844,2]
[335139931,1723888336479,-300.0,0.00010898,2]
[335139932,1723888336503,-5476.05832038,0.00010899,2]
[335139933,1723888336527,-10939.30140562,0.00010899,2]
[335139945,1723888492302,190.19,8.219e-05,2]
[335139946,1723888712635,155.0,9.962e-05,2]
[335139947,1723888713409,400.0,9.965e-05,2]
[335139948,1723888750309,11560.63796639,9.962e-05,2]
[335139949,1723888755633,271.95500939,9.962e-05,2]
[335139951,1723889026566,180.68,8.219e-05,2]
[335139952,1723889090737,1968.33725925,9.943e-05,2]
[335139960,1723889153002,200.0,9.963e-05,2]
[335140042,1723889432264,-300.0,9.999e-05,2]
[335140043,1723889432274,-642.56,0.0001,2]
[335140044,1723889432283,-343.84886734,0.0001,2]
[335140047,1723889432540,-7.744e-05,0.0001,2]
[335140049,1723889438703,-1036.98351432,0.0001,2]
[335140050,1723889438713,-550.0,0.0001,2]
[335140051,1723889438722,-1371.64874251,0.0001,2]
[335140052,1723889438732,-1000.0,0.00010027,2]
[335140053,1723889438742,-180.68,0.00010476,2]
[335140054,1723889438752,-1674.801,0.00010665,2]
[335140055,1723889438761,-660.679,0.00010665,2]
[335140056,1723889438771,-1078.564,0.00010665,2]
[335140057,1723889438780,-531.39122984,0.00010713,2]
[335140058,1723889438789,-764.0,0.00010756,2]
[335140059,1723889438799,-1509.2153,0.00010798,2]
[335140060,1723889438807,-346.52630541,0.00010799,2]
[335140061,1723889438817,-1018.85993565,0.000108,2]
[335140062,1723889438826,-150.0,0.000108,2]
[335140063,1723889438835,-300.38987,0.0001085,2]
[335140064,1723889438844,-418.66,0.00010897,2]
[335140065,1723889438855,-150.0,0.00010897,2]
[335140066,1723889438864,-499.99,0.00010897,2]
[335140067,1723889438873,-155.33247642,0.00010897,2]
[335140069,1723889438882,-2293.14,0.00010898,2]
[335140071,1723889438892,-2293.14,0.00010898,2]
[335140073,1723889438901,-2293.14,0.00010898,2]
[335140074,1723889438910,-2263.23,0.00010898,2]
[335140076,1723889438919,-2263.23,0.00010898,2]
[335140078,1723889438929,-3883.30787386,0.00010898,2]
[335140132,1723889440352,-619.73212614,0.00010898,2]
[335140133,1723889440362,-382.07749373,0.00010898,2]
[335140147,1723889444543,-4120.96250627,0.00010898,2]
[335140148,1723889444552,-2074.62,0.00010898,2]
[335140149,1723889444561,-2074.62,0.00010898,2]
[335140150,1723889444570,-5024.4712,0.00010899,2]
[335140151,1723889444579,-151.0,0.00010899,2]
[335140152,1723889444588,-151.0,0.00010899,2]
[335140153,1723889444598,-151.0,0.00010899,2]
[335140154,1723889444610,-151.0,0.00010899,2]
[335140155,1723889444620,-151.0,0.00010899,2]
[335140156,1723889444629,-151.0,0.00010899,2]
[335140157,1723889444639,-151.0,0.00010899,2]
[335140158,1723889444648,-151.0,0.00010899,2]
[335140159,1723889444657,-151.0,0.00010899,2]
[335140160,1723889444666,-151.0,0.00010899,2]
[335140161,1723889444675,-151.0,0.00010899,2]
[335140162,1723889444684,-2293.14,0.00010899,2]
[335140163,1723889444694,-151.0,0.00010899,2]
[335140164,1723889444703,-165.838294,0.00010899,2]
[335140165,1723889444711,-165.838294,0.00010899,2]
[335140166,1723889444721,-165.838294,0.00010899,2]
[335140167,1723889444730,-165.838294,0.00010899,2]
[335140168,1723889444740,-165.838294,0.00010899,2]
[335140169,1723889444749,-165.838294,0.00010899,2]
[335140170,1723889444759,-165.838294,0.00010899,2]
[335140171,1723889444768,-165.838294,0.00010899,2]
[335140172,1723889444777,-165.838294,0.00010899,2]
[335140173,1723889444786,-165.838294,0.00010899,2]
[335140174,1723889444795,-165.838294,0.00010899,2]
[335140175,1723889444804,-165.838294,0.00010899,2]
[335140176,1723889444814,-463.81,0.00010899,2]
[335140177,1723889444823,-907.092,0.00010899,2]
[335140178,1723889444832,-151.0,0.00010899,2]
[335140179,1723889444842,-63691.5164995,0.00010899,2]
[335140180,1723889444851,-63691.51649946,0.00010899,2]
[335140181,1723889444860,-39772.06349384,0.00010899,2]
[335140182,1723889446405,-1395.10828452,0.00010899,2]
[335140183,1723889532834,-1000.0,0.00010375,2]
[335140184,1723889532862,-1000.0,0.00010799,2]
[335140185,1723889532889,-33336.3907,0.00010799,2]